fUST/lending_fUST_20240908
["ID","MTS","AMOUNT","RATE_DAILY","PERIOD"]
[337546619,1725805889852,-500.0,0.00049863,120]
[337546620,1725805889862,-500.0,0.00049863,120]
[337546621,1725805889872,-647.52,0.00049863,120]
[337546622,1725805889882,-883.64,0.00049863,120]
[337546623,1725805889892,-500.0,0.00049863,120]
[337546624,1725805889902,-500.0,0.00049863,120]
[337546625,1725805889912,-500.0,0.00049863,120]
[337546626,1725805889921,-500.0,0.00049863,120]
[337546627,1725805889930,-500.0,0.00049863,120]
[337546628,1725805889940,-500.0,0.00049863,120]
[337546629,1725805889950,-500.0,0.00049863,120]
[337546630,1725805889959,-500.0,0.00049863,120]
[337546631,1725805889969,-695.11,0.00049863,120]
[337546632,1725805889979,-500.0,0.00049863,120]
[337546633,1725805889988,-539.71,0.00049863,120]
[337546634,1725805889998,-500.0,0.00049863,120]
[337546635,1725805890008,-500.0,0.00049863,120]
[337546636,1725805890018,-1337.0,0.00049863,120]
[337546637,1725805890028,-500.0,0.00049863,120]
[337546638,1725805890038,-500.0,0.00049863,120]
[337546639,1725805890047,-1005.43,0.00049863,120]
[337546640,1725805890058,-519.26,0.00049863,120]
[337546641,1725805890068,-510.8301716,0.00049863,120]
[337546642,1725805890078,-500.0,0.00049863,120]
[337546643,1725805890095,-500.0,0.00049863,120]
[337546644,1725805890104,-500.0,0.00049863,120]
[337546645,1725805890113,-500.0,0.00049863,120]
[337546646,1725805890122,-500.0,0.00049863,120]
[337546647,1725805890132,-500.0,0.00049863,120]
[337546648,1725805890142,-500.0,0.00049863,120]
[337546649,1725805890152,-500.0,0.00049863,120]
[337546650,1725805890161,-500.0,0.00049863,120]
[337546651,1725805890170,-500.0,0.00049863,120]
[337546652,1725805890180,-1000.0,0.00049863,120]
[337546653,1725805890190,-500.0,0.00049863,120]
[337546654,1725805890200,-500.0,0.00049863,120]
[337546655,1725805890210,-500.0,0.00049863,120]
[337546656,1725805890221,-500.0,0.00049863,120]
[337546657,1725805890231,-777.71,0.00049863,120]
[337546658,1725805890241,-210.99394534,0.00049863,120]
[337546659,1725805890251,-536.44,0.00049863,120]
[337546660,1725805890262,-500.0,0.00049863,120]
[337546661,1725805890271,-500.0,0.00049863,120]
[337546662,1725805890281,-500.0,0.00049863,120]
[337546663,1725805890291,-500.0,0.00049863,120]
[337546664,1725805890301,-500.0,0.00049863,120]
[337546665,1725805890310,-500.0,0.00049863,120]
[337546666,1725805890320,-500.0,0.00049863,120]
[337546667,1725805890331,-395.06,0.00049863,120]
[337546668,1725805890343,-500.0,0.00049863,120]
[337546669,1725805890352,-500.0,0.00049863,120]
[337546670,1725805890362,-500.0,0.00049863,120]
[337546671,1725805890371,-1035.22,0.00049863,120]
[337546672,1725805890380,-500.0,0.00049863,120]
[337546673,1725805890390,-287.59469154,0.00049863,120]
[337546674,1725805890400,-500.0,0.00049863,120]
[337546675,1725805890410,-500.0,0.00049863,120]
[337546676,1725805890420,-500.0,0.00049863,120]
[337546677,1725805890429,-500.0,0.00049863,120]
[337546678,1725805890439,-500.0,0.00049863,120]
[337546679,1725805890449,-500.0,0.00049863,120]
[337546680,1725805890459,-500.0,0.00049863,120]
[337546681,1725805890468,-500.0,0.00049863,120]
[337546682,1725805890478,-500.0,0.00049863,120]
[337546683,1725805890488,-500.0,0.00049863,120]
[337546684,1725805890497,-500.0,0.00049863,120]
[337546685,1725805890508,-500.0,0.00049863,120]
[337546686,1725805890517,-503.97462604,0.00049863,120]
[337546687,1725805890526,-500.0,0.00049863,120]
[337546688,1725805890537,-754.38,0.00049863,120]
[337546689,1725805890547,-500.0,0.00049863,120]
[337546690,1725805890557,-500.0,0.00049863,120]
[337546691,1725805890568,-1120.52,0.00049863,120]
[337546692,1725805890578,-2095.23,0.00049863,120]
[337546693,1725805890591,-500.0,0.00049863,120]
[337546694,1725805890601,-500.0,0.00049863,120]
[337546695,1725805890610,-500.0,0.00049863,120]
[337546696,1725805890620,-500.0,0.00049863,120]
[337546697,1725805890629,-778.94,0.00049863,120]
[337546698,1725805890639,-500.0,0.00049863,120]
[337546699,1725805890649,-500.0,0.00049863,120]
[337546700,1725805890659,-500.0,0.00049863,120]
[337546701,1725805890668,-500.0,0.00049863,120]
[337546702,1725805890678,-571.63,0.00049863,120]
[337546703,1725805890688,-1114.92,0.00049863,120]
[337546704,1725805890697,-468.54905085,0.00049863,120]
[337546705,1725805890707,-500.0,0.00049863,120]
[337546706,1725805890716,-675.76,0.00049863,120]
[337546707,1725805890726,-500.0,0.00049863,120]
[337546708,1725805890737,-328.31303105,0.00049863,120]
[337546709,1725805890747,-332.242635,0.00049863,120]
[337546710,1725805890757,-500.0,0.00049863,120]
[337546711,1725805890767,-783.87,0.00049863,120]
[337546712,1725805890777,-500.0,0.00049863,120]
[337546713,1725805890786,-500.0,0.00049863,120]
[337546714,1725805890796,-500.0,0.00049863,120]
[337546715,1725805890806,-722.92,0.00049863,120]
[337546716,1725805890816,-500.0,0.00049863,120]
[337546717,1725805890826,-500.0,0.00049863,120]
[337546718,1725805890838,-500.0,0.00049863,120]
[337546719,1725805890848,-500.0,0.00049863,120]
[337546720,1725805890858,-500.0,0.00049863,120]
[337546721,1725805890867,-1000.0,0.00049863,30]
[337546722,1725805890877,-500.0,0.00049863,120]
[337546723,1725805890887,-500.0,0.00049863,120]
[337546724,1725805890898,-500.0,0.00049863,120]
[337546725,1725805890907,-500.0,0.00049863,120]
[337546726,1725805890917,-502.54821737,0.00049863,120]
[337546727,1725805890926,-500.0,0.00049863,120]
[337546728,1725805890936,-500.0,0.00049863,120]
[337546729,1725805890946,-500.0,0.00049863,120]
[337546730,1725805890956,-500.0,0.00049863,120]
[337546731,1725805890966,-1071.72,0.00049863,120]
[337546732,1725805890976,-500.0,0.00049863,120]
[337546733,1725805890986,-500.0,0.00049863,120]
[337546734,1725805890996,-2383.56,0.00049863,120]
[337546735,1725805891007,-500.0,0.00049863,120]
[337546736,1725805891018,-500.0,0.00049863,120]
[337546737,1725805891027,-500.0,0.00049863,120]
[337546738,1725805891037,-500.0,0.00049863,120]
[337546739,1725805891048,-574.57,0.00049863,120]
[337546740,1725805891058,-1141.39,0.00049863,120]
[337546741,1725805891067,-1569.13,0.00049863,120]
[337546742,1725805891077,-500.0,0.00049863,120]
[337546743,1725805891091,-502.90538615,0.00049863,120]
[337546744,1725805891100,-285.58,0.00049863,7]
[337546745,1725805891112,-500.0,0.00049863,120]
[337546746,1725805891123,-1350.66,0.00049863,120]
[337546747,1725805891133,-1441.77,0.00049863,120]
[337546748,1725805891145,-500.0,0.00049863,120]
[337546749,1725805891157,-500.0,0.00049863,120]
[337546750,1725805891166,-575.01,0.00049863,120]
[337546751,1725805891176,-500.0,0.00049863,120]
[337546752,1725805891185,-500.0,0.00049863,120]
[337546753,1725805891196,-1422.35,0.00049863,120]
[337546754,1725805891206,-500.0,0.00049863,120]
[337546755,1725805891215,-500.0,0.00049863,120]
[337546756,1725805891225,-500.0,0.00049863,120]
[337546757,1725805891234,-500.0,0.00049863,120]
[337546758,1725805891243,-502.65826993,0.00049863,120]
[337546759,1725805891252,-500.0,0.00049863,120]
[337546760,1725805891262,-500.0,0.00049863,120]
[337546761,1725805891271,-500.0,0.00049863,120]
[337546762,1725805891280,-500.0,0.00049863,120]
[337546763,1725805891289,-500.0,0.00049863,120]
[337546764,1725805891298,-500.0,0.00049863,120]
[337546765,1725805891308,-500.0,0.00049863,120]
[337546766,1725805891317,-500.0,0.00049863,120]
[337546767,1725805891326,-906.85,0.00049863,120]
[337546768,1725805891337,-501.28202373,0.00049863,120]
[337546769,1725805891347,-500.0,0.00049863,120]
[337546770,1725805891476,-597.88,0.00049863,120]
[337546771,1725805891486,-2349.55,0.00049863,120]
[337546772,1725805891495,-500.0,0.00049863,120]
[337546773,1725805891505,-500.0,0.00049863,120]
[337546774,1725805891514,-500.0,0.00049863,120]
[337546775,1725805891524,-500.0,0.00049863,120]
[337546776,1725805891534,-500.0,0.00049863,120]
[337546777,1725805891544,-968.65,0.00049863,120]
[337546778,1725805891554,-754.03,0.00049863,120]
[337546779,1725805891564,-500.0,0.00049863,120]
[337546780,1725805891573,-1888.16,0.00049863,120]
[337546781,1725805891582,-500.0,0.00049863,120]
[337546782,1725805891591,-500.0,0.00049863,120]
[337546783,1725805891601,-515.69851306,0.00049863,120]
[337546784,1725805891610,-500.0,0.00049863,120]
[337546785,1725805891619,-547.56,0.00049863,120]
[337546786,1725805891629,-500.0,0.00049863,120]
[337546787,1725805891639,-500.0,0.00049863,120]
[337546788,1725805891649,-503.22053524,0.00049863,120]
[337546789,1725805891658,-500.0,0.00049863,120]
[337546790,1725805891668,-500.0,0.00049863,120]
[337546791,1725805891677,-500.0,0.00049863,120]
[337546792,1725805891687,-2284.18,0.00049863,120]
[337546793,1725805891697,-500.0,0.00049863,120]
[337546794,1725805891707,-500.0,0.00049863,120]
[337546795,1725805891718,-500.0,0.00049863,120]
[337546796,1725805891729,-1819.09,0.00049863,120]
[337546797,1725805891738,-500.0,0.00049863,120]
[337546798,1725805891749,-500.0,0.00049863,7]
[337546799,1725805891758,-500.0,0.00049863,120]
[337546800,1725805891768,-500.0,0.00049863,120]
[337546801,1725805891777,-500.0,0.00049863,120]
[337546802,1725805891786,-3590.46,0.00049863,120]
[337546803,1725805891797,-500.0,0.00049863,120]
[337546804,1725805891807,-500.0,0.00049863,120]
[337546805,1725805891816,-500.0,0.00049863,120]
[337546806,1725805891827,-500.0,0.00049863,120]
[337546807,1725805891837,-500.0,0.00049863,120]
[337546808,1725805891846,-500.0,0.00049863,120]
[337546809,1725805891855,-500.0,0.00049863,120]
[337546810,1725805891865,-504.59657716,0.00049863,120]
[337546811,1725805891874,-402.8995775,0.00049863,120]
[337546812,1725805891884,-512.60934197,0.00049863,120]
[337546813,1725805891894,-500.0,0.00049863,120]
[337546814,1725805891904,-1728.98,0.00049863,120]
[337546815,1725805891913,-500.0,0.00049863,120]
[337546816,1725805891924,-823.39,0.00049863,120]
[337546817,1725805891933,-500.0,0.00049863,2]
[337546818,1725805891942,-501.70367677,0.00049863,120]
[337546819,1725805891953,-500.0,0.00049863,120]
[337546820,1725805891963,-514.70741908,0.00049863,120]
[337546821,1725805891973,-500.0,0.00049863,120]
[337546822,1725805891983,-500.0,0.00049863,120]
[337546823,1725805891993,-500.0,0.00049863,120]
[337546824,1725805892003,-500.0,0.00049863,120]
[337546825,1725805892013,-554.96,0.00049863,120]
[337546826,1725805892021,-500.0,0.00049863,120]
[337546827,1725805892031,-500.0,0.00049863,120]
[337546828,1725805892041,-3569.14,0.00049863,120]
[337546829,1725805892050,-1143.59,0.00049863,120]
[337546830,1725805892061,-380.34198975,0.00049863,120]
[337546831,1725805892070,-500.0,0.00049863,120]
[337546832,1725805892080,-505.2569,0.00049863,120]
[337546833,1725805892091,-502.41234888,0.00049863,120]
[337546834,1725805892101,-632.66477619,0.00049863,120]
[337546835,1725805892112,-500.0,0.00049863,120]
[337546836,1725805892121,-501.68516995,0.00049863,120]
[337546837,1725805892130,-500.0,0.00049863,120]
[337546838,1725805892140,-500.0,0.00049863,120]
[337546839,1725805892150,-3136.53,0.00049863,120]
[337546840,1725805892162,-500.0,0.00049863,120]
[337546841,1725805892172,-535.66,0.00049863,120]
[337546842,1725805892181,-500.0,0.00049863,120]
[337546843,1725805892191,-559.62047057,0.00049863,120]
[337546844,1725805892200,-500.0,0.00049863,120]
[337546845,1725805892210,-1239.09,0.00049863,120]
[337546846,1725805892219,-500.0,0.00049863,120]
[337546847,1725805892229,-500.0,0.00049863,120]
[337546848,1725805892238,-500.0,0.00049863,2]
[337546849,1725805892248,-816.25,0.00049863,120]
[337546850,1725805892258,-500.0,0.00049863,120]
[337546851,1725805892267,-500.0,0.00049863,120]
[337546852,1725805892278,-497.5405885,0.00049863,120]
[337546853,1725805892287,-500.0,0.00049863,120]
[337546854,1725805892297,-500.0,0.00049863,120]
[337546855,1725805892306,-735.13,0.00049863,7]
[337546856,1725805892316,-500.0,0.00049863,120]
[337546857,1725805892326,-500.0,0.00049863,120]
[337546858,1725805892337,-500.0,0.00049863,120]
[337546859,1725805892346,-500.0,0.00049863,120]
[337546860,1725805892357,-544.41,0.00049863,120]
[337546861,1725805892366,-500.0,0.00049863,120]
[337546862,1725805892378,-500.0,0.00049863,120]
[337546863,1725805892390,-702.53,0.00049863,120]
[337546864,1725805892401,-500.0,0.00049863,120]
[337546865,1725805892411,-2422.66,0.00049863,120]
[337546866,1725805892421,-651.97,0.00049863,120]
[337546867,1725805892433,-912.86,0.00049863,120]
[337546868,1725805892444,-500.0,0.00049863,120]
[337546869,1725805892455,-503.04814904,0.00049863,120]
[337546870,1725805892464,-500.0,0.00049863,120]
[337546871,1725805892474,-500.0,0.00049863,120]
[337546872,1725805892483,-500.0,0.00049863,120]
[337546873,1725805892493,-500.0,0.00049863,120]
[337546874,1725805892502,-500.0,0.00049863,120]
[337546875,1725805892512,-2604.32,0.00049863,30]
[337546876,1725805892521,-500.0,0.00049863,120]
[337546877,1725805892531,-372.9032539,0.00049863,120]
[337546878,1725805892540,-712.44,0.00049863,120]
[337546879,1725805892550,-500.0,0.00049863,120]
[337546880,1725805892560,-1268.01,0.00049863,120]
[337546881,1725805892569,-2383.05,0.00049863,120]
[337546882,1725805892578,-500.0,0.00049863,120]
[337546883,1725805892588,-500.0,0.00049863,120]
[337546884,1725805892598,-500.0,0.00049863,120]
[337546885,1725805892607,-500.0,0.00049863,120]
[337546886,1725805892619,-500.0,0.00049863,120]
[337546887,1725805892628,-500.0,0.00049863,20]
[337546888,1725805892638,-500.0,0.00049863,120]
[337546889,1725805892647,-546.25851521,0.00049863,120]
[337546890,1725805892657,-599.83,0.00049863,120]
[337546891,1725805892666,-500.0,0.00049863,120]
[337546892,1725805892676,-500.0,0.00049863,120]
[337546893,1725805892686,-500.0,0.00049863,120]
[337546894,1725805892695,-500.0,0.00049863,120]
[337546895,1725805892705,-504.5757963,0.00049863,120]
[337546896,1725805892714,-504.93512011,0.00049863,120]
[337546897,1725805892724,-1639.78,0.00049863,120]
[337546898,1725805892734,-706.48,0.00049863,120]
[337546899,1725805892743,-500.0,0.00049863,120]
[337546900,1725805892753,-500.0,0.00049863,120]
[337546901,1725805892763,-500.0,0.00049863,120]
[337546902,1725805892772,-500.0,0.00049863,120]
[337546903,1725805892782,-500.0,0.00049863,120]
[337546904,1725805892792,-508.2,0.00049863,120]
[337546905,1725805892801,-500.0,0.00049863,120]
[337546906,1725805892811,-500.0,0.00049863,120]
[337546907,1725805892820,-549.45,0.00049863,120]
[337546908,1725805892830,-500.0,0.00049863,120]
[337546909,1725805892840,-1000.0,0.00049863,120]
[337546910,1725805892850,-500.0,0.00049863,120]
[337546911,1725805892860,-500.0,0.00049863,120]
[337546912,1725805892870,-500.0,0.00049863,120]
[337546913,1725805892886,-1099.95,0.00049863,120]
[337546914,1725805892896,-500.0,0.00049863,120]
[337546915,1725805892905,-500.0,0.00049863,120]
[337546916,1725805892915,-500.0,0.00049863,120]
[337546917,1725805892925,-2965.66,0.00049863,120]
[337546918,1725805892934,-500.0,0.00049863,120]
[337546919,1725805892945,-500.0,0.00049863,120]
[337546920,1725805892955,-500.0,0.00049863,120]
[337546921,1725805892965,-299.06729357,0.00049863,120]
[337546922,1725805892974,-500.0,0.00049863,120]
[337546923,1725805892984,-502.64963731,0.00049863,120]
[337546924,1725805892995,-508.33788993,0.00049863,120]
[337546925,1725805893006,-500.58,0.00049863,120]
[337546926,1725805893015,-1019.13,0.00049863,120]
[337546927,1725805893025,-500.0,0.00049863,120]
[337546928,1725805893035,-500.0,0.00049863,120]
[337546929,1725805893044,-500.0,0.00049863,120]
[337546930,1725805893053,-500.0,0.00049863,120]
[337546931,1725805893063,-500.0,0.00049863,120]
[337546932,1725805893073,-500.0,0.00049863,120]
[337546933,1725805893083,-500.0,0.00049863,120]
[337546934,1725805893099,-421.39106432,0.00049863,120]
[337546935,1725805893109,-500.0,0.00049863,120]
[337546936,1725805893123,-500.0,0.00049863,120]
[337546937,1725805893132,-536.46,0.00049863,120]
[337546938,1725805893142,-500.0,0.00049863,120]
[337546939,1725805893152,-500.0,0.00049863,120]
[337546940,1725805893163,-500.0,0.00049863,120]
[337546941,1725805893173,-956.94,0.00049863,120]
[337546942,1725805893182,-500.0,0.00049863,120]
[337546943,1725805893193,-500.0,0.00049863,120]
[337546944,1725805893203,-2614.93,0.00049863,120]
[337546945,1725805893213,-1258.91,0.00049863,30]
[337546946,1725805893224,-936.51,0.00049863,120]
[337546947,1725805893233,-750.82,0.00049863,120]
[337546948,1725805893243,-500.0,0.00049863,120]
[337546949,1725805893253,-500.0,0.00049863,120]
[337546950,1725805893263,-500.0,0.00049863,120]
[337546951,1725805893273,-500.0,0.00049863,120]
[337546952,1725805893282,-500.0,0.00049863,120]
[337546953,1725805893292,-500.0,0.00049863,120]
[337546954,1725805893302,-500.96,0.00049863,120]
[337546955,1725805893313,-809.49,0.00049863,120]
[337546956,1725805893323,-500.0,0.00049863,120]
[337546957,1725805893334,-500.0,0.00049863,120]
[337546958,1725805893462,-500.0,0.00049863,120]
[337546959,1725805893473,-500.0,0.00049863,120]
[337546960,1725805893482,-500.0,0.00049863,120]
[337546961,1725805893492,-1610.56,0.00049863,2]
[337546962,1725805893502,-500.0,0.00049863,120]
[337546963,1725805893511,-2330.31,0.00049863,120]
[337546964,1725805893521,-500.0,0.00049863,120]
[337546965,1725805893531,-500.0,0.00049863,120]
[337546966,1725805893540,-919.1,0.00049863,120]
[337546967,1725805893550,-500.0,0.00049863,120]
[337546968,1725805893560,-500.0,0.00049863,120]
[337546969,1725805893569,-713.82,0.00049863,120]
[337546970,1725805893579,-1348.0,0.00049863,120]
[337546971,1725805893588,-500.0,0.00049863,120]
[337546972,1725805893598,-577.32123806,0.00049863,120]
[337546973,1725805893608,-500.0,0.00049863,120]
[337546974,1725805893618,-1215.29,0.00049863,120]
[337546975,1725805893628,-500.0,0.00049863,120]
[337546976,1725805893637,-500.0,0.00049863,120]
[337546977,1725805893647,-500.0,0.00049863,120]
[337546978,1725805893658,-500.0,0.00049863,120]
[337546979,1725805893668,-500.0,0.00049863,120]
[337546980,1725805893678,-500.0,0.00049863,30]
[337546981,1725805893687,-500.0,0.00049863,120]
[337546982,1725805893697,-500.0,0.00049863,120]
[337546983,1725805893706,-8647.46,0.00049863,120]
[337546984,1725805893716,-500.0,0.00049863,120]
[337546985,1725805893726,-500.0,0.00049863,120]
[337546986,1725805893736,-1268.96,0.00049863,120]
[337546987,1725805893746,-905.01,0.00049863,120]
[337546988,1725805893756,-500.0,0.00049863,120]
[337546989,1725805893765,-500.0,0.00049863,120]
[337546990,1725805893775,-500.0,0.00049863,120]
[337546991,1725805893785,-1095.72,0.00049863,120]
[337546992,1725805893795,-500.0,0.00049863,120]
[337546993,1725805893805,-500.0,0.00049863,120]
[337546994,1725805893815,-500.0,0.00049863,120]
[337546995,1725805893825,-212.96073866,0.00049863,120]
[337546996,1725805893836,-518.67794397,0.00049863,120]
[337546997,1725805893846,-500.0,0.00049863,120]
[337546998,1725805893855,-500.0,0.00049863,120]
[337546999,1725805893865,-500.0,0.00049863,120]
[337547000,1725805893875,-500.0,0.00049863,120]
[337547001,1725805893885,-500.0,0.00049863,120]
[337547002,1725805893895,-2723.96,0.00049863,120]
[337547003,1725805893904,-3738.38,0.00049863,120]
[337547004,1725805893914,-1760.49,0.00049863,120]
[337547005,1725805893924,-500.0,0.00049863,120]
[337547006,1725805893933,-500.0,0.00049863,120]
[337547007,1725805893943,-500.0,0.00049863,120]
[337547008,1725805893953,-1533.73,0.00049863,7]
[337547009,1725805893962,-500.0,0.00049863,120]
[337547010,1725805893972,-1652.87,0.00049863,120]
[337547011,1725805893981,-500.0,0.00049863,120]
[337547012,1725805893990,-935.82,0.00049863,120]
[337547013,1725805893999,-500.0,0.00049863,2]
[337547014,1725805894009,-990.57,0.00049863,120]
[337547015,1725805894019,-500.0,0.00049863,120]
[337547016,1725805894029,-1634.99,0.00049863,120]
[337547017,1725805894040,-500.0,0.00049863,120]
[337547018,1725805894050,-500.0,0.00049863,120]
[337547019,1725805894060,-500.0,0.00049863,120]
[337547020,1725805894070,-500.0,0.00049863,120]
[337547021,1725805894079,-561.96,0.00049863,120]
[337547022,1725805894089,-1212.44,0.00049863,120]
[337547023,1725805894098,-500.0,0.00049863,120]
[337547024,1725805894108,-999.0,0.00049863,120]
[337547025,1725805894120,-346.16755415,0.00049863,120]
[337547026,1725805894129,-798.12,0.00049863,120]
[337547027,1725805894140,-639.86,0.00049863,120]
[337547028,1725805894149,-500.0,0.00049863,120]
[337547029,1725805894159,-756.74,0.00049863,120]
[337547030,1725805894168,-500.0,0.00049863,120]
[337547031,1725805894178,-503.33523379,0.00049863,120]
[337547032,1725805894188,-500.0,0.00049863,120]
[337547033,1725805894197,-500.0,0.00049863,120]
[337547034,1725805894208,-3183.67,0.00049863,120]
[337547035,1725805894218,-500.0,0.00049863,120]
[337547036,1725805894228,-500.0,0.00049863,120]
[337547037,1725805894238,-1579.24,0.00049863,120]
[337547038,1725805894249,-500.0,0.00049863,120]
[337547039,1725805894259,-1002.7,0.00049863,120]
[337547040,1725805894269,-3855.05,0.00049863,120]
[337547041,1725805894278,-500.0,0.00049863,120]
[337547042,1725805894287,-500.0,0.00049863,120]
[337547043,1725805894297,-1054.78,0.00049863,120]
[337547044,1725805894306,-4259.05,0.00049863,120]
[337547045,1725805894315,-500.0,0.00049863,120]
[337547046,1725805894324,-500.0,0.00049863,120]
[337547047,1725805894335,-500.0,0.00049863,120]
[337547048,1725805894344,-500.0,0.00049863,120]
[337547049,1725805894353,-500.0,0.00049863,120]
[337547050,1725805894362,-2083.33,0.00049863,120]
[337547051,1725805894371,-1317.78,0.00049863,120]
[337547052,1725805894381,-500.0,0.00049863,120]
[337547053,1725805894390,-500.0,0.00049863,120]
[337547054,1725805894399,-1267.76,0.00049863,120]
[337547055,1725805894408,-500.0,0.00049863,120]
[337547056,1725805894417,-500.0,0.00049863,120]
[337547057,1725805894427,-432.27161467,0.00049863,120]
[337547058,1725805894436,-500.0,0.00049863,120]
[337547059,1725805894446,-3178.06,0.00049863,120]
[337547060,1725805894456,-500.0,0.00049863,120]
[337547061,1725805894465,-5184.01,0.00049863,120]
[337547062,1725805894475,-588.78,0.00049863,120]
[337547063,1725805894484,-535.99,0.00049863,120]
[337547064,1725805894494,-500.0,0.00049863,120]
[337547065,1725805894503,-3023.99,0.00049863,120]
[337547066,1725805894512,-500.0,0.00049863,120]
[337547067,1725805894522,-500.0,0.00049863,120]
[337547068,1725805894531,-500.0,0.00049863,120]
[337547069,1725805894541,-500.0,0.00049863,120]
[337547070,1725805894550,-571.74,0.00049863,120]
[337547071,1725805894559,-500.0,0.00049863,120]
[337547072,1725805894568,-500.0,0.00049863,120]
[337547073,1725805894578,-622.8,0.00049863,120]
[337547074,1725805894589,-1447.48,0.00049863,120]
[337547075,1725805894599,-2095.57,0.00049863,120]
[337547076,1725805894608,-500.0,0.00049863,120]
[337547077,1725805894617,-500.0,0.00049863,120]
[337547078,1725805894627,-4027.69,0.00049863,120]
[337547079,1725805894637,-500.0,0.00049863,120]
[337547080,1725805894649,-500.0,0.00049863,120]
[337547081,1725805894658,-500.0,0.00049863,120]
[337547082,1725805894668,-2650.07,0.00049863,120]
[337547083,1725805894677,-636.12,0.00049863,120]
[337547084,1725805894687,-2388.47,0.00049863,120]
[337547085,1725805894696,-674.33,0.00049863,120]
[337547086,1725805894706,-3583.25,0.00049863,120]
[337547087,1725805894715,-2356.95,0.00049863,120]
[337547088,1725805894725,-1869.76,0.00049863,120]
[337547089,1725805894735,-3073.31,0.00049863,120]
[337547090,1725805894744,-500.0,0.00049863,120]
[337547091,1725805894755,-500.0,0.00049863,120]
[337547092,1725805894764,-501.86178827,0.00049863,120]
[337547093,1725805894774,-500.0,0.00049863,120]
[337547094,1725805894784,-500.0,0.00049863,120]
[337547095,1725805894793,-500.0,0.00049863,120]
[337547096,1725805894802,-3853.3,0.00049863,120]
[337547097,1725805894812,-7074.82,0.00049863,120]
[337547098,1725805894823,-500.0,0.00049863,120]
[337547099,1725805894833,-644.27,0.00049863,120]
[337547100,1725805894842,-102728.31,0.00049863,120]
[337547101,1725805894851,-23755.79,0.00049863,120]
[337547102,1725805894861,-500.0,0.00049863,120]
[337547103,1725805894870,-500.0,0.00049863,120]
[337547104,1725805894880,-1564.55,0.00049863,120]
[337547105,1725805894889,-606.98,0.00049863,120]
[337547106,1725805894898,-500.0,0.00049863,120]
[337547107,1725805894908,-500.0,0.00049863,120]
[337547108,1725805894917,-2449.96,0.00049863,120]
[337547109,1725805894927,-500.0,0.00049863,120]
[337547110,1725805894937,-500.0,0.00049863,60]
[337547111,1725805894946,-381.09591982,0.00049863,120]
[337547112,1725805894955,-512.5116094,0.00049863,120]
[337547113,1725805894966,-500.0,0.00049863,120]
[337547114,1725805894976,-3064.33,0.00049863,120]
[337547115,1725805894985,-500.58,0.00049863,120]
[337547116,1725805894994,-1746.51,0.00049863,120]
[337547117,1725805895004,-500.0,0.00049863,120]
[337547118,1725805895013,-500.0,0.00049863,120]